fUSD/lending_fUSD_20250119
["ID","MTS","AMOUNT","RATE_DAILY","PERIOD"]
[349550907,1737292252394,-500.0,0.00019726,2]
[349550908,1737292252404,-500.0,0.00019726,2]
[349550909,1737292252414,-500.0,0.00019726,2]
[349550910,1737292252423,-590.41186866,0.00019726,2]
[349550911,1737292252433,-500.0,0.00019726,2]
[349550912,1737292252443,-198.40828886,0.00019726,2]
[349550913,1737292252452,-500.0,0.00019726,2]
[349550914,1737292252462,-500.0,0.00019726,2]
[349550915,1737292252471,-500.0,0.00019726,2]
[349550916,1737292252481,-500.0,0.00019726,2]
[349550917,1737292252490,-934.69,0.00019726,2]
[349550918,1737292252500,-500.0,0.00019726,2]
[349550919,1737292252510,-649.72,0.00019726,2]
[349550920,1737292252519,-500.0,0.00019726,2]
[349550921,1737292252528,-500.0,0.00019726,2]
[349550922,1737292252537,-598.68,0.00019726,2]
[349550923,1737292252547,-500.0,0.00019726,2]
[349550924,1737292252557,-500.0,0.00019726,2]
[349550925,1737292252566,-500.0,0.00019726,2]
[349550926,1737292252576,-500.0,0.00019726,2]
[349550927,1737292252585,-500.0,0.00019726,2]
[349550928,1737292252595,-500.0,0.00019726,2]
[349550929,1737292252604,-500.0,0.00019726,2]
[349550930,1737292252614,-611.02,0.00019726,2]
[349550931,1737292252623,-500.0,0.00019726,2]
[349550932,1737292252632,-697.01,0.00019726,2]
[349550933,1737292252641,-500.0,0.00019726,2]
[349550934,1737292252651,-500.0,0.00019726,2]
[349550935,1737292252661,-500.0,0.00019726,2]
[349550936,1737292252672,-500.0,0.00019726,2]
[349550937,1737292252681,-500.0,0.00019726,2]
[349550938,1737292252690,-500.0,0.00019726,2]
[349550939,1737292252699,-500.0,0.00019726,2]
[349550940,1737292252709,-500.0,0.00019726,2]
[349550941,1737292252718,-500.0,0.00019726,2]
[349550942,1737292252730,-500.0,0.00019726,2]
[349550943,1737292252739,-190.8736789,0.00019726,2]
[349550944,1737292252749,-535.62,0.00019726,2]
[349550945,1737292252758,-500.0,0.00019726,2]
[349550946,1737292252769,-500.0,0.00019726,2]
[349550947,1737292252778,-500.0,0.00019726,2]
[349550948,1737292252788,-500.0,0.00019726,2]
[349550949,1737292252798,-500.0,0.00019726,2]
[349550950,1737292252809,-500.0,0.00019726,2]
[349550951,1737292252819,-314.11829087,0.00019726,2]
[349550952,1737292252829,-500.0,0.00019726,2]
[349550953,1737292252838,-500.0,0.00019726,2]
[349550954,1737292252848,-500.0,0.00019726,2]
[349550955,1737292252858,-500.0,0.00019726,2]
[349550956,1737292252867,-381.94626974,0.00019726,2]
[349550957,1737292252876,-553.8630968,0.00019726,2]
[349550958,1737292252885,-500.0,0.00019726,2]
[349550959,1737292252895,-500.0,0.00019726,2]
[349550960,1737292252905,-500.0,0.00019726,2]
[349550961,1737292252914,-500.0,0.00019726,2]
[349550962,1737292252924,-502.35431139,0.00019726,2]
[349550963,1737292252933,-500.0,0.00019726,2]
[349550964,1737292252942,-500.0,0.00019726,2]
[349550965,1737292252952,-500.0,0.00019726,2]
[349550966,1737292252963,-500.0,0.00019726,2]
[349550967,1737292252973,-500.0,0.00019726,2]
[349550968,1737292252983,-500.0,0.00019726,2]
[349550969,1737292252993,-500.0,0.00019726,2]
[349550970,1737292253003,-500.0,0.00019726,2]
[349550971,1737292253012,-500.0,0.00019726,2]
[349550972,1737292253022,-500.0,0.00019726,2]
[349550973,1737292253031,-500.0,0.00019726,2]
[349550974,1737292253041,-500.0,0.00019726,2]
[349550975,1737292253051,-500.0,0.00019726,2]
[349550976,1737292253060,-500.0,0.00019726,2]
[349550977,1737292253070,-500.0,0.00019726,2]
[349550978,1737292253080,-500.0,0.00019726,2]
[349550979,1737292253089,-780.34,0.00019726,2]
[349550980,1737292253099,-500.0,0.00019726,2]
[349550981,1737292253109,-512.06,0.00019726,2]
[349550982,1737292253119,-500.0,0.00019726,2]
[349550983,1737292253128,-500.0,0.00019726,2]
[349550984,1737292253138,-500.0,0.00019726,2]
[349550985,1737292253147,-500.0,0.00019726,2]
[349550986,1737292253156,-500.0,0.00019726,2]
[349550987,1737292253166,-500.0,0.00019726,2]
[349550988,1737292253175,-500.0,0.00019726,2]
[349550989,1737292253185,-500.0,0.00019726,2]
[349550990,1737292253194,-520.43,0.00019726,2]
[349550991,1737292253204,-500.0,0.00019726,2]
[349550992,1737292253213,-500.0,0.00019726,2]
[349550993,1737292253223,-437.07424538,0.00019726,2]
[349550994,1737292253233,-500.0,0.00019726,2]
[349550995,1737292253242,-500.0,0.00019726,2]
[349550996,1737292253252,-500.0,0.00019726,2]
[349550997,1737292253261,-500.0,0.00019726,2]
[349550998,1737292253271,-781.7,0.00019726,2]
[349550999,1737292253281,-500.0,0.00019726,2]
[349551000,1737292253291,-500.0,0.00019726,2]
[349551001,1737292253300,-500.0,0.00019726,2]
[349551002,1737292253311,-500.0,0.00019726,2]
[349551003,1737292253321,-500.0,0.00019726,2]
[349551004,1737292253331,-500.0,0.00019726,2]
[349551005,1737292253340,-500.0,0.00019726,2]
[349551006,1737292253350,-500.0,0.00019726,2]
[349551007,1737292253359,-500.0,0.00019726,2]
[349551008,1737292253369,-1479.92,0.00019726,2]
[349551009,1737292253379,-500.0,0.00019726,2]
[349551010,1737292253389,-500.0,0.00019726,2]
[349551011,1737292253398,-500.0,0.00019726,2]
[349551012,1737292253408,-500.0,0.00019726,2]
[349551013,1737292253417,-521.37661701,0.00019726,2]
[349551014,1737292253427,-500.0,0.00019726,2]
[349551015,1737292253437,-500.0,0.00019726,2]
[349551016,1737292253447,-500.0,0.00019726,2]
[349551017,1737292253456,-500.0,0.00019726,2]
[349551018,1737292253466,-500.0,0.00019726,2]
[349551019,1737292253475,-500.0,0.00019726,2]
[349551020,1737292253484,-500.0,0.00019726,2]
[349551021,1737292253494,-500.0,0.00019726,2]
[349551022,1737292253504,-505.19,0.00019726,2]
[349551023,1737292253514,-500.0,0.00019726,2]
[349551024,1737292253523,-500.0,0.00019726,2]
[349551025,1737292253533,-500.0,0.00019726,2]
[349551026,1737292253544,-500.0,0.00019726,2]
[349551027,1737292253554,-500.0,0.00019726,2]
[349551028,1737292253564,-500.0,0.00019726,2]
[349551029,1737292253575,-500.0,0.00019726,2]
[349551030,1737292253587,-274.49359845,0.00019726,2]
[349551031,1737292253598,-500.0,0.00019726,2]
[349551032,1737292253608,-500.0,0.00019726,2]
[349551033,1737292253618,-702.65,0.00019726,2]
[349551034,1737292253628,-500.0,0.00019726,2]
[349551035,1737292253637,-500.0,0.00019726,2]
[349551036,1737292253647,-500.0,0.00019726,2]
[349551037,1737292253656,-500.0,0.00019726,2]
[349551038,1737292253665,-500.0,0.00019726,2]
[349551039,1737292253675,-500.0,0.00019726,2]
[349551040,1737292253684,-500.0,0.00019726,2]
[349551041,1737292253694,-500.0,0.00019726,2]
[349551042,1737292253704,-500.0,0.00019726,2]
[349551043,1737292253714,-500.0,0.00019726,2]
[349551044,1737292253725,-500.0,0.00019726,2]
[349551045,1737292253736,-500.0,0.00019726,2]
[349551046,1737292253746,-602.68258517,0.00019726,2]
[349551047,1737292253756,-500.0,0.00019726,2]
[349551048,1737292253767,-500.0,0.00019726,2]
[349551049,1737292253777,-500.0,0.00019726,2]
[349551050,1737292253786,-500.0,0.00019726,2]
[349551051,1737292253797,-500.0,0.00019726,2]
[349551052,1737292253807,-500.0,0.00019726,2]
[349551053,1737292253819,-500.0,0.00019726,2]
[349551054,1737292253829,-500.0,0.00019726,2]
[349551055,1737292253838,-500.0,0.00019726,2]
[349551056,1737292253848,-586.1,0.00019726,2]
[349551057,1737292253857,-500.0,0.00019726,2]
[349551058,1737292253866,-500.0,0.00019726,2]
[349551059,1737292253876,-500.0,0.00019726,2]
[349551060,1737292253885,-500.0,0.00019726,2]
[349551061,1737292253895,-500.0,0.00019726,2]
[349551062,1737292253905,-500.0,0.00019726,2]
[349551063,1737292253914,-500.0,0.00019726,2]
[349551064,1737292253924,-281.52346073,0.00019726,2]
[349551065,1737292253933,-500.0,0.00019726,2]
[349551066,1737292253943,-632.50862155,0.00019726,2]
[349551067,1737292253953,-577.49901844,0.00019726,2]
[349551068,1737292253963,-200.0,0.00019726,2]
[349551069,1737292253972,-500.0,0.00019726,2]
[349551071,1737292253983,-500.0,0.00019726,2]
[349551072,1737292253992,-500.0,0.00019726,2]
[349551073,1737292254002,-500.0,0.00019726,2]
[349551074,1737292254011,-525.04,0.00019726,2]
[349551075,1737292254021,-500.0,0.00019726,2]
[349551076,1737292254030,-500.0,0.00019726,2]
[349551077,1737292254040,-500.0,0.00019726,2]
[349551078,1737292254049,-500.0,0.00019726,2]
[349551079,1737292254058,-500.0,0.00019726,2]
[349551080,1737292254069,-500.0,0.00019726,2]
[349551081,1737292254078,-509.50230113,0.00019726,2]
[349551082,1737292254088,-500.0,0.00019726,2]
[349551083,1737292254098,-500.0,0.00019726,2]
[349551084,1737292254107,-500.0,0.00019726,2]
[349551085,1737292254116,-500.0,0.00019726,2]
[349551086,1737292254126,-500.0,0.00019726,2]
[349551087,1737292254135,-208.38571402,0.00019726,2]
[349551088,1737292254145,-688.38,0.00019726,2]
[349551089,1737292254154,-500.0,0.00019726,2]
[349551090,1737292254164,-581.31,0.00019726,2]
[349551091,1737292254173,-500.0,0.00019726,2]
[349551092,1737292254183,-500.0,0.00019726,2]
[349551093,1737292254192,-500.0,0.00019726,2]
[349551094,1737292254202,-500.0,0.00019726,2]
[349551095,1737292254211,-500.0,0.00019726,2]
[349551096,1737292254220,-500.0,0.00019726,2]
[349551097,1737292254229,-500.0,0.00019726,2]
[349551098,1737292254238,-336.7522239,0.00019726,2]
[349551099,1737292254247,-500.0,0.00019726,2]
[349551100,1737292254256,-500.0,0.00019726,2]
[349551101,1737292254265,-500.0,0.00019726,2]
[349551102,1737292254274,-500.0,0.00019726,2]
[349551103,1737292254283,-500.0,0.00019726,2]
[349551104,1737292254292,-500.0,0.00019726,2]
[349551105,1737292254302,-500.0,0.00019726,2]
[349551106,1737292254311,-500.0,0.00019726,2]
[349551107,1737292254320,-500.0,0.00019726,2]
[349551108,1737292254329,-705.18,0.00019726,2]
[349551109,1737292254338,-500.0,0.00019726,2]
[349551110,1737292254347,-462.44006398,0.00019726,2]
[349551111,1737292254358,-500.0,0.00019726,2]
[349551112,1737292254367,-500.0,0.00019726,2]
[349551113,1737292254376,-501.6426377,0.00019726,2]
[349551114,1737292254385,-511.14317639,0.00019726,2]
[349551115,1737292254455,-591.66646245,0.00019726,2]
[349551116,1737292254464,-605.22,0.00019726,2]
[349551117,1737292254472,-500.0,0.00019726,2]
[349551118,1737292254481,-500.0,0.00019726,2]
[349551119,1737292254490,-900.64,0.00019726,2]
[349551120,1737292254499,-540.6,0.00019726,2]
[349551121,1737292254508,-631.32,0.00019726,2]
[349551122,1737292254517,-714.49,0.00019726,2]
[349551123,1737292254526,-500.0,0.00019726,2]
[349551124,1737292254535,-500.0,0.00019726,2]
[349551125,1737292254544,-500.0,0.00019726,2]
[349551126,1737292254552,-582.01722933,0.00019726,2]
[349551127,1737292254561,-500.0,0.00019726,2]
[349551128,1737292254571,-500.0,0.00019726,2]
[349551129,1737292254580,-500.0,0.00019726,2]
[349551130,1737292254590,-500.0,0.00019726,2]
[349551131,1737292254599,-500.0,0.00019726,2]
[349551132,1737292254608,-500.0,0.00019726,2]
[349551133,1737292254617,-500.0,0.00019726,2]
[349551134,1737292254626,-500.0,0.00019726,2]
[349551135,1737292254635,-500.0,0.00019726,2]
[349551136,1737292254644,-503.31,0.00019726,2]
[349551137,1737292254653,-500.0,0.00019726,2]
[349551138,1737292254662,-500.0,0.00019726,2]
[349551139,1737292254670,-500.0,0.00019726,2]
[349551140,1737292254679,-500.0,0.00019726,2]
[349551141,1737292254688,-500.0,0.00019726,2]
[349551142,1737292254697,-989.64,0.00019726,2]
[349551143,1737292254706,-928.09,0.00019726,2]
[349551144,1737292254715,-500.0,0.00019726,2]
[349551145,1737292254725,-500.0,0.00019726,2]
[349551146,1737292254736,-500.0,0.00019726,2]
[349551147,1737292254745,-565.7,0.00019726,2]
[349551148,1737292254754,-500.0,0.00019726,2]
[349551149,1737292254764,-608.22,0.00019726,2]
[349551150,1737292254774,-500.0,0.00019726,2]
[349551151,1737292254784,-500.0,0.00019726,2]
[349551152,1737292254793,-563.99759936,0.00019726,2]
[349551153,1737292254803,-508.45590278,0.00019726,2]
[349551154,1737292254812,-500.0,0.00019726,2]
[349551155,1737292254823,-500.0,0.00019726,2]
[349551156,1737292254832,-519.4439667,0.00019726,2]
[349551157,1737292254842,-500.0,0.00019726,2]
[349551158,1737292254851,-501.76,0.00019726,2]
[349551159,1737292254860,-500.0,0.00019726,2]
[349551160,1737292254870,-500.0,0.00019726,2]
[349551161,1737292254879,-500.0,0.00019726,2]
[349551162,1737292254888,-500.0,0.00019726,2]
[349551163,1737292254897,-500.0,0.00019726,2]
[349551164,1737292254906,-500.0,0.00019726,2]
[349551165,1737292254915,-500.0,0.00019726,2]
[349551166,1737292254925,-500.0,0.00019726,2]
[349551167,1737292254934,-500.0,0.00019726,2]
[349551168,1737292254943,-500.0,0.00019726,2]
[349551169,1737292254953,-559.09,0.00019726,2]
[349551170,1737292254962,-689.91,0.00019726,2]
[349551171,1737292254972,-500.0,0.00019726,2]
[349551172,1737292254981,-500.0,0.00019726,2]
[349551173,1737292254990,-500.0,0.00019726,2]
[349551174,1737292255000,-500.0,0.00019726,2]
[349551175,1737292255010,-548.8,0.00019726,2]
[349551176,1737292255019,-715.56,0.00019726,2]
[349551177,1737292255028,-500.0,0.00019726,2]
[349551178,1737292255037,-804.68,0.00019726,2]
[349551179,1737292255047,-500.0,0.00019726,2]
[349551180,1737292255056,-682.83,0.00019726,2]
[349551181,1737292255065,-500.0,0.00019726,2]
[349551182,1737292255076,-500.0,0.00019726,2]
[349551183,1737292255086,-500.0,0.00019726,2]
[349551184,1737292255095,-500.0,0.00019726,2]
[349551185,1737292255105,-1504.76,0.00019726,2]
[349551186,1737292255114,-1070.98,0.00019726,2]
[349551187,1737292255124,-1894.47,0.00019726,2]
[349551188,1737292255133,-500.0,0.00019726,2]
[349551189,1737292255142,-540.8,0.00019726,2]
[349551190,1737292255152,-657.78,0.00019726,2]
[349551191,1737292255161,-1651.79,0.00019726,2]
[349551192,1737292255170,-4965.38,0.00019726,2]
[349551193,1737292255179,-572.04,0.00019726,2]
[349551194,1737292255188,-500.0,0.00019726,2]
[349551195,1737292255197,-500.0,0.00019726,2]
[349551196,1737292255207,-451.80807502,0.00019726,2]
[349551197,1737292255216,-873.98,0.00019726,2]
[349551198,1737292255225,-500.0,0.00019726,2]
[349551199,1737292255234,-500.0,0.00019726,2]
[349551200,1737292255244,-500.0,0.00019726,2]
[349551201,1737292255253,-500.0,0.00019726,2]
[349551202,1737292255262,-3347.66,0.00019726,2]
[349551203,1737292255272,-500.0,0.00019726,2]
[349551204,1737292255281,-872.81,0.00019726,2]
[349551205,1737292255291,-684.55,0.00019726,2]
[349551206,1737292255300,-1325.84,0.00019726,2]
[349551207,1737292255309,-5040.77,0.00019726,2]
[349551208,1737292255318,-500.0,0.00019726,2]
[349551209,1737292255327,-503.12403072,0.00019726,2]
[349551210,1737292255337,-536.4,0.00019726,2]
[349551211,1737292255346,-1617.26,0.00019726,2]
[349551212,1737292255355,-500.0,0.00019726,2]
[349551213,1737292255364,-500.0,0.00019726,2]
[349551214,1737292255373,-792.78,0.00019726,2]
[349551215,1737292255383,-904.94,0.00019726,2]
[349551216,1737292255392,-519.07100947,0.00019726,2]
[349551217,1737292255401,-500.0,0.00019726,2]
[349551218,1737292255411,-505.73963452,0.00019726,2]
[349551219,1737292255420,-1822.43,0.00019726,2]
[349551220,1737292255429,-500.0,0.00019726,2]
[349551221,1737292255438,-500.0,0.00019726,2]
[349551222,1737292255448,-500.0,0.00019726,2]
[349551223,1737292255458,-699.95,0.00019726,2]
[349551224,1737292255467,-500.0,0.00019726,2]
[349551225,1737292255476,-500.0,0.00019726,2]
[349551226,1737292255485,-500.0,0.00019726,2]
[349551227,1737292255495,-3210.43,0.00019726,2]
[349551228,1737292255505,-500.0,0.00019726,2]
[349551229,1737292255515,-1000.0,0.00019726,14]
[349551230,1737292255524,-1462.05,0.00019726,2]
[349551231,1737292255533,-540.89,0.00019726,2]
[349551232,1737292255542,-500.0,0.00019726,2]
[349551233,1737292255552,-500.0,0.00019726,2]
[349551234,1737292255561,-502.93,0.00019726,2]
[349551235,1737292255571,-644.72,0.00019726,2]
[349551236,1737292255580,-1590.53,0.00019726,2]
[349551237,1737292255590,-520.83,0.00019726,2]
[349551238,1737292255599,-500.0,0.00019726,2]
[349551239,1737292255608,-500.0,0.00019726,2]
[349551240,1737292255617,-500.0,0.00019726,2]
[349551241,1737292255627,-500.0,0.00019726,2]
[349551242,1737292255636,-500.0,0.00019726,2]
[349551243,1737292255645,-500.0,0.00019726,2]
[349551244,1737292255657,-695.52,0.00019726,2]
[349551245,1737292255667,-500.0,0.00019726,2]
[349551246,1737292255676,-500.0,0.00019726,2]
[349551247,1737292255685,-951.41,0.00019726,2]
[349551248,1737292255696,-500.0,0.00019726,2]
[349551249,1737292255705,-735.48,0.00019726,2]
[349551250,1737292255715,-500.0,0.00019726,2]
[349551251,1737292255726,-500.0,0.00019726,2]
[349551252,1737292255737,-500.0,0.00019726,2]
[349551253,1737292255747,-500.0,0.00019726,2]
[349551254,1737292255757,-702.45,0.00019726,2]
[349551255,1737292255767,-500.0,0.00019726,2]
[349551256,1737292255776,-500.0,0.00019726,2]
[349551257,1737292255785,-500.0,0.00019726,2]
[349551258,1737292255795,-2463.65,0.00019726,2]
[349551259,1737292255806,-505.310352,0.00019726,2]
[349551260,1737292255815,-500.0,0.00019726,2]
[349551261,1737292255827,-1434.63,0.00019726,2]
[349551262,1737292255836,-500.0,0.00019726,2]
[349551263,1737292255846,-500.0,0.00019726,2]
[349551264,1737292255856,-506.3896974,0.00019726,2]
[349551265,1737292255866,-500.0,0.00019726,2]
[349551266,1737292255875,-500.0,0.00019726,2]
[349551267,1737292255884,-500.0,0.00019726,2]
[349551268,1737292255895,-882.85,0.00019726,2]
[349551269,1737292255904,-500.0,0.00019726,2]
[349551270,1737292255913,-500.0,0.00019726,2]
[349551271,1737292255923,-1830.16,0.00019726,2]
[349551272,1737292255932,-500.0,0.00019726,2]
[349551273,1737292255942,-500.0,0.00019726,2]
[349551274,1737292255951,-795.55,0.00019726,2]
[349551275,1737292255961,-2062.48,0.00019726,2]
[349551276,1737292255970,-500.0,0.00019726,2]
[349551277,1737292255979,-517.3,0.00019726,2]
[349551278,1737292255989,-3504.96,0.00019726,2]
[349551279,1737292255998,-500.0,0.00019726,2]
[349551280,1737292256008,-500.0,0.00019726,2]
[349551281,1737292256017,-782.55,0.00019726,2]
[349551282,1737292256027,-4164.88,0.00019726,2]
[349551283,1737292256036,-1287.98,0.00019726,2]
[349551284,1737292256046,-500.0,0.00019726,2]
[349551285,1737292256056,-608.36,0.00019726,2]
[349551286,1737292256065,-876.74,0.00019726,2]
[349551287,1737292256076,-976.69,0.00019726,2]
[349551288,1737292256085,-500.0,0.00019726,2]
[349551289,1737292256095,-500.0,0.00019726,2]
[349551290,1737292256106,-500.0,0.00019726,2]
[349551291,1737292256115,-3376.63,0.00019726,2]
[349551292,1737292256125,-5837.31,0.00019726,2]
[349551293,1737292256135,-500.0,0.00019726,2]
[349551294,1737292256146,-500.0,0.00019726,2]
[349551295,1737292256156,-1654.57,0.00019726,2]
[349551296,1737292256167,-500.0,0.00019726,2]
[349551297,1737292256177,-500.0,0.00019726,2]
[349551298,1737292256186,-590.84,0.00019726,2]
[349551299,1737292256196,-1000.0,0.00019726,2]
[349551300,1737292256205,-5578.33,0.00019726,2]
[349551301,1737292256215,-500.0,0.00019726,2]
[349551302,1737292256224,-500.0,0.00019726,2]
[349551303,1737292256235,-500.0,0.00019726,2]
[349551304,1737292256245,-1063.88,0.00019726,2]
[349551305,1737292256255,-837.48,0.00019726,2]
[349551306,1737292256265,-500.0,0.00019726,2]
[349551307,1737292256275,-500.0,0.00019726,2]
[349551308,1737292256285,-500.0,0.00019726,2]
[349551309,1737292256295,-500.0,0.00019726,2]
[349551310,1737292256304,-500.0,0.00019726,2]
[349551311,1737292256314,-5505.67,0.00019726,2]
[349551312,1737292256326,-816.79,0.00019726,2]
[349551313,1737292256335,-1142.76,0.00019726,2]
[349551314,1737292256345,-500.0,0.00019726,2]
[349551315,1737292256355,-587.96,0.00019726,2]
[349551316,1737292256365,-1323.26,0.00019726,2]
[349551317,1737292256375,-500.0,0.00019726,2]
[349551318,1737292256384,-500.0,0.00019726,2]
[349551319,1737292256395,-1361.89,0.00019726,2]
[349551320,1737292256404,-564.48,0.00019726,2]
[349551321,1737292256414,-7457.3,0.00019726,2]
[349551322,1737292256423,-1474.97,0.00019726,2]
[349551323,1737292256433,-7941.18,0.00019726,2]
[349551324,1737292256442,-1015.14,0.00019726,2]
[349551325,1737292256452,-500.0,0.00019726,2]
[349551326,1737292256462,-570.38,0.00019726,2]
[349551327,1737292256471,-500.0,0.00019726,2]
[349551328,1737292256480,-500.0,0.00019726,2]
[349551329,1737292256489,-2600.78,0.00019726,2]
[349551330,1737292256499,-823.65,0.00019726,2]
[349551331,1737292256508,-753.37,0.00019726,2]
[349551332,1737292256518,-1285.82,0.00019726,2]
[349551333,1737292256527,-500.0,0.00019726,2]
[349551334,1737292256536,-515.83438806,0.00019726,2]
[349551335,1737292256546,-500.0,0.00019726,2]
[349551336,1737292256555,-566.95,0.00019726,2]
[349551337,1737292256565,-511.36,0.00019726,2]
[349551338,1737292256576,-500.0,0.00019726,2]
[349551339,1737292256585,-500.0,0.00019726,2]
[349551340,1737292256595,-629.83,0.00019726,2]
[349551341,1737292256604,-1482.04,0.00019726,2]
[349551342,1737292256614,-681.68,0.00019726,2]
[349551343,1737292256623,-1930.92,0.00019726,2]
[349551344,1737292256632,-716.2,0.00019726,2]
[349551345,1737292256642,-500.0,0.00019726,2]
[349551346,1737292256651,-500.0,0.00019726,2]
[349551347,1737292256660,-1697.51,0.00019726,2]
[349551348,1737292256670,-500.0,0.00019726,2]
[349551349,1737292256680,-500.0,0.00019726,2]
[349551350,1737292256689,-527.73,0.00019726,2]
[349551351,1737292256698,-500.0,0.00019726,2]
[349551352,1737292256708,-500.0,0.00019726,2]
[349551353,1737292256717,-406.26897167,0.00019726,2]
[349551354,1737292256728,-500.0,0.00019726,2]
[349551355,1737292256739,-500.0,0.00019726,2]
[349551356,1737292256748,-500.0,0.00019726,2]
[349551357,1737292256757,-758.95,0.00019726,2]
[349551358,1737292256766,-500.0,0.00019726,2]
[349551359,1737292256777,-2945.05,0.00019726,2]
[349551360,1737292256786,-500.0,0.00019726,2]
[349551361,1737292256796,-2412.03,0.00019726,2]
[349551362,1737292256805,-1273.31,0.00019726,2]
[349551363,1737292256816,-500.0,0.00019726,2]
[349551364,1737292256827,-500.0,0.00019726,2]
[349551365,1737292256837,-500.0,0.00019726,2]
[349551366,1737292256847,-2538.98,0.00019726,2]
[349551367,1737292256856,-9176.13,0.00019726,2]
[349551368,1737292256866,-288.29570884,0.00019726,2]
[349551369,1737292256876,-500.0,0.00019726,2]
[349551370,1737292256886,-1804.75,0.00019726,2]
[349551371,1737292256903,-500.0,0.00019726,2]
[349551372,1737292256912,-607.32,0.00019726,2]
[349551373,1737292256922,-500.0,0.00019726,2]
[349551374,1737292256932,-500.0,0.00019726,2]
[349551375,1737292256941,-1312.39,0.00019726,2]
[349551376,1737292256951,-783.66,0.00019726,2]
[349551377,1737292256960,-500.0,0.00019726,2]
[349551378,1737292256970,-501.35622041,0.00019726,2]
[349551379,1737292256979,-1802.63,0.00019726,2]
[349551380,1737292256989,-500.6,0.00019726,2]
[349551381,1737292256998,-1796.07,0.00019726,2]
[349551382,1737292257008,-1263.38,0.00019726,2]
[349551383,1737292257017,-1461.42,0.00019726,2]
[349551384,1737292257027,-500.0,0.00019726,2]
[349551385,1737292257036,-500.0,0.00019726,2]
[349551386,1737292257045,-500.0,0.00019726,2]
[349551387,1737292257056,-2172.3,0.00019726,2]
[349551388,1737292257066,-524.52,0.00019726,2]
[349551389,1737292257077,-618.96,0.00019726,2]
[349551390,1737292257086,-2037.95,0.00019726,2]
[349551391,1737292257096,-2569.61,0.00019726,2]
[349551392,1737292257106,-1016.82,0.00019726,2]
[349551393,1737292257116,-1022.09,0.00019726,2]
[349551394,1737292257129,-1421.94,0.00019726,2]
[349551395,1737292257143,-500.0,0.00019726,2]
[349551396,1737292257152,-500.0,0.00019726,2]
[349551397,1737292257163,-1228.43,0.00019726,2]
[349551398,1737292257174,-9355.91,0.00019726,2]
[349551399,1737292257184,-1836.55,0.00019726,2]
[349551400,1737292257194,-500.0,0.00019726,2]
[349551401,1737292257203,-500.0,0.00019726,2]
[349551402,1737292257213,-903.35,0.00019726,2]
[349551403,1737292257223,-1068.47,0.00019726,2]
[349551404,1737292257233,-500.0,0.00019726,2]
[349551405,1737292257243,-500.0,0.00019726,2]
[349551406,1737292257253,-500.0,0.00019726,2]
[349551407,1737292257263,-756.47,0.00019726,2]